fUSD/lending_fUSD_20240607
["ID","MTS","AMOUNT","RATE_DAILY","PERIOD"]
[328792766,1717788676712,-1322.10783233,0.000299,7]
[328792767,1717788676723,-1322.10783233,0.000299,7]
[328792768,1717788676733,-1322.10783233,0.000299,7]
[328792769,1717788676744,-1322.10783233,0.000299,7]
[328792770,1717788676753,-1322.10783233,0.000299,7]
[328792771,1717788676765,-1322.10783233,0.000299,7]
[328792772,1717788676775,-1322.10783233,0.000299,7]
[328792773,1717788676785,-1322.10783233,0.000299,7]
[328792774,1717788676795,-1322.10783233,0.000299,7]
[328792775,1717788676805,-1322.6,0.000299,7]
[328792776,1717788676815,-1380.26406768,0.000299,2]
[328792777,1717788676827,-203.72693932,0.000299,2]
[328792778,1717788676838,-351.71211312,0.000299,2]
[328792779,1717788676847,-1605.59659611,0.000299,15]
[328792780,1717788676856,-155.03171412,0.00029903,2]
[328792781,1717788676867,-240.4134823,0.00029908,2]
[328792782,1717788676877,-153.75535246,0.00029953,2]
[328792783,1717788676887,-240.4134823,0.00029955,2]
[328792784,1717788676896,-154.78346022,0.00029956,2]
[328792785,1717788676906,-150.0,0.00029964,2]
[328792786,1717788676916,-150.5,0.00029969,15]
[328792787,1717788676926,-296.0,0.0002997,15]
[328792788,1717788676936,-500.0,0.0002997,2]
[328792789,1717788676945,-500.0,0.0002997,2]
[328792790,1717788676956,-1627.34867,0.0002997,2]
[328792791,1717788676965,-1810.4,0.00029972,4]
[328792792,1717788676975,-4408.71,0.00029972,2]
[328792793,1717788676985,-513.45,0.00029972,4]
[328792794,1717788676995,-24701.91,0.00029972,4]
[328792795,1717788677004,-500.0,0.00029972,4]
[328792796,1717788677014,-1040.49,0.00029972,4]
[328792797,1717788677023,-898.11,0.00029972,4]
[328792798,1717788677033,-3812.64,0.00029972,4]
[328792799,1717788677042,-10625.86,0.00029972,4]
[328792800,1717788677051,-643.88,0.00029972,4]
[328792801,1717788677061,-1829.31,0.00029972,4]
[328792802,1717788677073,-5124.43129544,0.00029972,4]
[328792803,1717788677304,1529.4749,0.00011914,2]
[328792804,1717788677949,-447.82661952,0.00019198,2]
[328792805,1717788677964,-305.4059242,0.00019198,2]
[328792806,1717788677978,-155.0,0.00019198,2]
[328792807,1717788677992,-215.66238223,0.00019199,2]
[328792808,1717788678006,-155.0,0.00019199,2]
[328792809,1717788678019,-210.39913373,0.00019199,2]
[328792810,1717788678033,-246.72665707,0.00019199,2]
[328792811,1717788678046,-1813.94928325,0.00025,2]
[328792812,1717788678061,-1186.05071675,0.00025,2]
[328792813,1717788678081,-397.339,0.00029467,2]
[328792814,1717788678094,-158.90772333,0.00029763,5]
[328792815,1717788678107,-155.0,0.00029861,2]
[328792816,1717788678121,-267.00542666,0.00029861,2]
[328792817,1717788678134,-736.28325256,0.00029862,2]
[328792818,1717788678146,-413.95294776,0.00029862,2]
[328792819,1717788678159,-167.7655461,0.00029862,2]
[328792820,1717788678172,-1173.9,0.00029863,4]
[328792821,1717788678184,-500.0,0.00029863,4]
[328792822,1717788678197,-1173.9,0.00029863,4]
[328792823,1717788678210,-500.0,0.00029863,4]
[328792824,1717788678222,-500.0,0.00029863,4]
[328792825,1717788678235,-1173.9,0.00029863,4]
[328792826,1717788678248,-500.0,0.00029863,4]
[328792827,1717788678261,-1173.9,0.00029863,4]
[328792828,1717788678274,-500.0,0.00029863,4]
[328792829,1717788678285,-500.0,0.00029863,4]
[328792830,1717788678294,-500.0,0.00029863,4]
[328792831,1717788678304,-1173.9,0.00029863,4]
[328792832,1717788678313,-500.0,0.00029863,2]
[328792833,1717788678328,-500.0,0.00029863,4]
[328792834,1717788678337,-500.0,0.00029863,4]
[328792835,1717788678347,-500.0,0.00029863,2]
[328792836,1717788678356,-1173.9,0.00029863,4]
[328792837,1717788678365,-500.0,0.00029863,4]
[328792838,1717788678375,-500.0,0.00029863,4]
[328792839,1717788678384,-500.0,0.00029863,2]
[328792840,1717788678393,-1173.9,0.00029863,4]
[328792841,1717788678403,-190.6,0.00029863,4]
[328792842,1717788678413,-635.8,0.00029863,2]
[328792843,1717788678422,-1173.9,0.00029863,4]
[328792844,1717788678433,-500.0,0.00029863,4]
[328792845,1717788678444,-1173.9,0.00029863,4]
[328792846,1717788678454,-648.30462116,0.00029863,4]
[328792847,1717788678463,-1943.68,0.00029863,4]
[328792848,1717788678472,-1173.9,0.00029863,4]
[328792849,1717788678482,-1943.68,0.00029863,4]
[328792850,1717788678491,-500.0,0.00029863,4]
[328792851,1717788678501,-1173.9,0.00029863,4]
[328792852,1717788678511,-1943.68,0.00029863,4]
[328792853,1717788678521,-500.0,0.00029863,4]
[328792854,1717788678531,-1173.9,0.00029863,4]
[328792855,1717788678543,-11863.69870456,0.00029972,4]
[328792856,1717788678553,-500.0,0.00029972,4]
[328792857,1717788678565,-7606.0,0.00029973,4]
[328792858,1717788678581,-1848.0,0.00029973,4]
[328792859,1717788678592,-291.439,0.00029976,2]
[328792860,1717788678601,-1611.2048588,0.00029976,2]
[328792861,1717788679730,-4199.0251412,0.00029976,2]
[328792862,1717788679739,-358.0,0.00029976,2]
[328792863,1717788679749,-38034.0,0.00029976,2]
[328792864,1717788679759,-1471.0,0.00029976,2]
[328792865,1717788679769,-262.438,0.00029976,2]
[328792866,1717788679778,-1336.781,0.00029976,2]
[328792867,1717788679788,-1152.31990522,0.00029978,15]
[328792868,1717788679797,-3188.48756978,0.00029978,2]
[328792869,1717788679807,-1827.59323947,0.00029978,2]
[328792870,1717788680170,-345.71076375,0.00029978,2]
[328792871,1717788680186,-24184.5589552,0.00029979,2]
[328792872,1717788680201,-3531.92007216,0.00029979,2]
[328792873,1717788680219,-2659.37169153,0.00029979,2]
[328792874,1717788680231,-1095.76485235,0.00029979,2]
[328792875,1717788680242,-13347.40612766,0.00029979,2]
[328792876,1717788680251,-4575.47836191,0.00029979,2]
[328792877,1717788680675,959.88938005,0.00011038,2]
[328792878,1717788680918,32706.59004121,0.00011619,2]
[328792879,1717788681238,155.0,0.00011619,2]
[328792880,1717788681800,1313.84082624,0.00011619,2]
[328792881,1717788681895,945.9503,0.00011619,2]
[328792899,1717788749621,299.65504071,0.00011619,2]
[328792900,1717788765624,300.15451152,0.00011619,2]
[328792901,1717788844674,2638.21172292,0.000118,2]
[328792902,1717788851290,1268.42502626,0.00011,2]
[328792903,1717788915588,245590.22112876,0.00011,2]
[328792904,1717788915614,18943.53947323,0.00011,2]
[328792905,1717788931920,8822.70109445,0.000101,2]
[328792906,1717788936817,307.80224328,0.00015,14]
[328792907,1717788937167,-282.82092405,0.00010998,2]
[328792908,1717788937190,-792.11656562,0.00010998,2]
[328792909,1717788937213,-267.18972619,0.00010999,2]
[328792910,1717788937238,-98657.87278414,0.00011,2]
[328792914,1717789109887,150.0,0.0003,40]
[328792916,1717789148240,185.03244282,0.0003,40]
[328792923,1717789479122,-208.1113018,0.00010228,2]
[328792924,1717789479147,-407.41888073,0.00010228,2]
[328792925,1717789479170,-238.09718907,0.00010229,2]
[328792926,1717789479192,-1146.3726284,0.00010229,2]
[328792927,1717789480833,-754.46447535,0.00010229,2]
[328792928,1717789480855,-155.0,0.0001023,2]
[328792929,1717789480876,-241.49077668,0.0001023,2]
[328792930,1717789480899,-849.04474797,0.0001023,2]
[328792931,1717789481547,-2000.0,0.00010229,2]
[328792932,1717789482127,-2000.0,0.00010229,2]
[328792933,1717789482749,-2000.0,0.00010229,2]
[328792934,1717789483079,-2000.0,0.00010229,2]
[328792935,1717789483389,-2000.0,0.00010229,2]
[328792936,1717789483701,-534.28950588,0.00010229,2]
[328792937,1717789483722,-412.02792694,0.0001023,2]
[328792938,1717789483746,-1053.68256718,0.0001023,2]
[328792939,1717789484030,-2000.0,0.0001023,2]
[328792940,1717789488321,-1794.9987264,0.00010228,2]
[328792941,1717789488345,-1236.20373585,0.0001023,2]
[328792942,1717789488368,-436.3905071,0.00010231,2]
[328792943,1717789488390,-338.49898174,0.00010231,2]
[328792944,1717789488413,-201.57961596,0.00010231,2]
[328792945,1717789488435,-155.0,0.00010231,2]
[328792946,1717789488458,-307.31586984,0.00010231,2]
[328792947,1717789488483,-217.32072534,0.00010231,2]
[328792948,1717789488507,-2006.99717582,0.00010232,2]
[328792949,1717789488529,-1052.85767216,0.00010232,2]
[328792950,1717789488553,-263.71348611,0.00010232,2]
[328792951,1717789488574,-490.33394814,0.00010233,2]
[328792952,1717789488596,-645.50901128,0.00010233,2]
[328792953,1717789488618,-155.0,0.00010233,2]
[328792954,1717789488640,-151.39412324,0.00010235,2]
[328792955,1717789488665,-700.46,0.00010336,2]
[328792956,1717789488686,-173.94513606,0.00010878,2]
[328792957,1717789488708,-150.99,0.00010879,2]
[328792958,1717789488731,-209.41336991,0.00010987,2]
[328792959,1717789488757,-499.99,0.00010987,2]
[328792960,1717789488781,-21956.48859335,0.0001099,2]
[328792961,1717789488802,-1489.54389462,0.00010993,2]
[328792962,1717789488829,-1391.47819964,0.00010996,2]
[328792963,1717789488853,-93812.20501205,0.00011,2]
[328792964,1717789488876,-150.0,0.00011717,2]
[328792965,1717789488899,-2611.20547856,0.00012,2]
[328792966,1717789488922,-171.14,0.0001228,2]
[328792967,1717789488945,-700.46,0.000126,2]
[328792968,1717789488968,-1000.0,0.0001269,2]
[328792969,1717789488992,-172.33,0.0001331,2]
[328792970,1717789489014,-1396.13,0.00013651,2]
[328792971,1717789489037,-982.4016218,0.000139,2]
[328792972,1717789489061,-173.94513606,0.000139,2]
[328792973,1717789489084,-759.77543874,0.000139,2]
[328792974,1717789489108,-256.02693997,0.000139,2]
[328792975,1717789489131,-166.51202761,0.000139,2]
[328792976,1717789489154,-211.84353317,0.000139,2]
[328792977,1717789489177,-9869.3231658,0.000139,2]
[328792978,1717789489199,-327.03263673,0.00013986,2]
[328792979,1717789489222,-155.14292391,0.0001399,2]
[328792980,1717789489247,-155.14292391,0.0001399,2]
[328792981,1717789489270,-151.15,0.0001399,2]
[328792982,1717789489294,-151.15,0.0001399,2]
[328792983,1717789489318,-151.15,0.0001399,2]
[328792984,1717789489342,-151.15,0.0001399,2]
[328792985,1717789489371,-151.15,0.0001399,2]
[328792986,1717789489395,-151.15,0.0001399,2]
[328792987,1717789489420,-151.15,0.0001399,2]
[328792988,1717789489445,-151.15,0.0001399,2]
[328792989,1717789489472,-151.15,0.0001399,2]
[328792990,1717789489498,-151.15,0.0001399,2]
[328792991,1717789489521,-151.15,0.0001399,2]
[328792992,1717789489545,-151.15,0.0001399,2]
[328792993,1717789489569,-151.15,0.0001399,2]
[328792994,1717789489593,-151.15,0.0001399,2]
[328792995,1717789489617,-151.15,0.0001399,2]
[328792996,1717789489640,-151.15,0.0001399,2]
[328792997,1717789489666,-151.15,0.0001399,2]
[328792998,1717789489691,-151.15,0.0001399,2]
[328792999,1717789489716,-151.15,0.0001399,2]
[328793000,1717789489741,-151.15,0.0001399,2]
[328793001,1717789489766,-151.15,0.0001399,2]
[328793002,1717789489790,-151.15,0.0001399,2]
[328793003,1717789489816,-151.15,0.0001399,2]
[328793004,1717789489840,-151.15,0.0001399,2]
[328793005,1717789489864,-151.15,0.0001399,2]
[328793006,1717789489887,-151.15,0.0001399,2]
[328793007,1717789489914,-151.15,0.0001399,2]
[328793008,1717789489938,-151.15,0.0001399,2]
[328793009,1717789489962,-151.15,0.0001399,2]
[328793010,1717789489986,-151.15,0.0001399,2]
[328793011,1717789490009,-151.15,0.0001399,2]
[328793012,1717789490032,-151.15,0.0001399,2]
[328793013,1717789490055,-151.15,0.0001399,2]
[328793014,1717789490078,-151.15,0.0001399,2]
[328793015,1717789490103,-151.15,0.0001399,2]
[328793016,1717789490128,-151.15,0.0001399,2]
[328793017,1717789490160,-151.15,0.0001399,2]
[328793018,1717789490187,-151.15,0.0001399,2]
[328793019,1717789490212,-151.15,0.0001399,2]
[328793020,1717789490236,-151.15,0.0001399,2]
[328793021,1717789490262,-151.15,0.0001399,2]
[328793022,1717789490287,-151.15,0.0001399,2]
[328793023,1717789490312,-151.15,0.0001399,2]
[328793024,1717789490336,-151.15,0.0001399,2]
[328793025,1717789490360,-151.15,0.0001399,2]
[328793026,1717789490388,-151.15,0.0001399,2]
[328793027,1717789490412,-151.15,0.0001399,2]
[328793028,1717789490435,-151.15,0.0001399,2]
[328793029,1717789490458,-151.15,0.0001399,2]
[328793030,1717789490483,-151.15,0.0001399,2]
[328793031,1717789490509,-151.15,0.0001399,2]
[328793032,1717789490534,-151.15,0.0001399,2]
[328793033,1717789490558,-151.15,0.0001399,2]
[328793034,1717789490582,-151.15,0.0001399,2]
[328793035,1717789490605,-151.15,0.0001399,2]
[328793036,1717789490628,-151.15,0.0001399,2]
[328793037,1717789490652,-151.15,0.0001399,2]
[328793038,1717789490675,-151.15,0.0001399,2]
[328793039,1717789490698,-151.15,0.0001399,2]
[328793040,1717789490721,-151.15,0.0001399,2]
[328793041,1717789490746,-151.15,0.0001399,2]
[328793042,1717789490770,-151.15,0.0001399,2]
[328793043,1717789490794,-151.15,0.0001399,2]
[328793044,1717789490820,-151.15,0.0001399,2]
[328793045,1717789490851,-151.15,0.0001399,2]
[328793046,1717789490878,-151.15,0.0001399,2]
[328793047,1717789490904,-151.15,0.0001399,2]
[328793048,1717789490929,-151.15,0.0001399,2]
[328793049,1717789490954,-151.15,0.0001399,2]
[328793050,1717789490979,-151.15,0.0001399,2]
[328793051,1717789491008,-151.15,0.0001399,2]
[328793052,1717789491037,-151.15,0.0001399,2]
[328793053,1717789491062,-151.15,0.0001399,2]
[328793054,1717789491087,-151.15,0.0001399,2]
[328793055,1717789491112,-151.15,0.0001399,2]
[328793056,1717789491136,-151.15,0.0001399,2]
[328793057,1717789491159,-151.15,0.0001399,2]
[328793058,1717789491184,-151.15,0.0001399,2]
[328793059,1717789491210,-151.15,0.0001399,2]
[328793060,1717789491235,-151.15,0.0001399,2]
[328793061,1717789491261,-151.15,0.0001399,2]
[328793062,1717789491289,-151.15,0.0001399,2]
[328793063,1717789491315,-151.15,0.0001399,2]
[328793064,1717789491340,-151.15,0.0001399,2]
[328793065,1717789491364,-151.15,0.0001399,2]
[328793066,1717789491389,-151.15,0.0001399,2]
[328793067,1717789491413,-151.15,0.0001399,2]
[328793068,1717789491436,-151.15,0.0001399,2]
[328793069,1717789491461,-151.15,0.0001399,2]
[328793070,1717789491485,-151.15,0.0001399,2]
[328793071,1717789491511,-151.15,0.0001399,2]
[328793072,1717789491534,-151.15,0.0001399,2]
[328793073,1717789491558,-151.15,0.0001399,2]
[328793074,1717789491582,-151.15,0.0001399,2]
[328793075,1717789491609,-151.15,0.0001399,2]
[328793076,1717789491634,-151.15,0.0001399,2]
[328793077,1717789491659,-151.15,0.0001399,2]
[328793078,1717789491684,-151.15,0.0001399,2]
[328793079,1717789491858,-151.15,0.0001399,2]
[328793080,1717789491886,-151.15,0.0001399,2]
[328793081,1717789491910,-1246.52348474,0.00013998,2]
[328793082,1717789491933,-796.89912787,0.00013999,2]
[328793083,1717789491957,-282.01697371,0.00013999,2]
[328793084,1717789491989,-4233463.52080281,0.00014,2]
[328793085,1717789499168,176.45645745,9.898e-05,2]
[328793086,1717789570631,243823.54354255,9.898e-05,2]
[328793087,1717789570665,111177.29890555,9.898e-05,2]
[328793088,1717789570692,193748.13026816,9.898e-05,2]
[328793089,1717789571591,20263.52227418,9.898e-05,2]
[328793090,1717789571781,362.85834995,9.898e-05,2]
[328793091,1717789585516,20303.86010403,9.898e-05,2]
[328793092,1717789588218,362.85834995,9.898e-05,2]
[328793093,1717789588377,270067.4936539,9.898e-05,2]
[328793094,1717789588403,2306.90086394,9.898e-05,2]
[328793095,1717789593341,150.0,9.897e-05,2]
[328793096,1717789593366,150.0,9.897e-05,2]
[328793097,1717789593388,150.0,9.897e-05,2]
[328793098,1717789593411,75.13468166,9.897e-05,2]
[328793101,1717789595268,-150.0,0.00010995,2]
[328793102,1717789596930,-150.0,0.00010995,2]
[328793103,1717789598546,-45.57209114,0.00010995,2]
[328793104,1717789603771,362.85834995,9.898e-05,2]
[328793105,1717789604409,193249.94050033,9.898e-05,2]
[328793106,1717789621772,161.80172576,9.898e-05,2]
[328793107,1717789621795,161.80172576,9.898e-05,2]
[328793108,1717789621817,39.25489843,9.898e-05,2]
[328793110,1717789640000,157.76996632,9.898e-05,2]
[328793111,1717789640025,119.1711866,9.898e-05,2]
[328793117,1717789664815,154.6928424,9.898e-05,2]
[328793118,1717789664837,154.6928424,9.898e-05,2]
[328793119,1717789664860,154.6928424,9.898e-05,2]
[328793120,1717789664888,154.6928424,9.898e-05,2]
[328793121,1717789664909,154.6928424,9.898e-05,2]
[328793122,1717789664934,154.6928424,9.898e-05,2]
[328793123,1717789664959,154.6928424,9.898e-05,2]
[328793124,1717789664981,154.6928424,9.898e-05,2]
[328793125,1717789665002,154.6928424,9.898e-05,2]
[328793126,1717789665026,13.07141777,9.898e-05,2]
[328793127,1717789677232,150.0,9.898e-05,2]
[328793128,1717789677257,150.0,9.898e-05,2]
[328793129,1717789677283,47.59467079,9.898e-05,2]
[328793130,1717789681444,150.0,9.898e-05,2]
[328793131,1717789681468,150.0,9.898e-05,2]
[328793132,1717789681492,150.0,9.898e-05,2]
[328793133,1717789681516,150.0,9.898e-05,2]
[328793134,1717789681541,150.0,9.898e-05,2]
[328793135,1717789681565,150.0,9.898e-05,2]
[328793136,1717789681590,150.0,9.898e-05,2]
[328793137,1717789681616,150.0,9.898e-05,2]
[328793138,1717789681642,150.0,9.898e-05,2]
[328793139,1717789681664,150.0,9.898e-05,2]
[328793140,1717789681686,150.0,9.898e-05,2]
[328793141,1717789681709,150.0,9.898e-05,2]
[328793142,1717789681733,150.0,9.898e-05,2]
[328793143,1717789681757,150.0,9.898e-05,2]
[328793144,1717789681779,150.0,9.898e-05,2]
[328793145,1717789681800,150.0,9.898e-05,2]
[328793146,1717789681822,150.0,9.898e-05,2]
[328793147,1717789681847,150.0,9.898e-05,2]
[328793148,1717789681869,150.0,9.898e-05,2]
[328793149,1717789681897,150.0,9.898e-05,2]
[328793150,1717789681920,150.0,9.898e-05,2]
[328793151,1717789681942,150.0,9.898e-05,2]
[328793152,1717789681964,150.0,9.898e-05,2]
[328793153,1717789681986,150.0,9.898e-05,2]
[328793154,1717789682007,150.0,9.898e-05,2]
[328793155,1717789682028,150.0,9.898e-05,2]
[328793156,1717789682050,150.0,9.898e-05,2]
[328793157,1717789682072,150.0,9.898e-05,2]
[328793158,1717789682094,150.0,9.898e-05,2]
[328793159,1717789682116,150.0,9.898e-05,2]
[328793160,1717789682138,150.0,9.898e-05,2]
[328793161,1717789682160,150.0,9.898e-05,2]
[328793162,1717789682181,150.0,9.898e-05,2]
[328793163,1717789682202,150.0,9.898e-05,2]
[328793164,1717789682224,150.0,9.898e-05,2]
[328793165,1717789682246,150.0,9.898e-05,2]
[328793166,1717789682267,150.0,9.898e-05,2]
[328793167,1717789682290,150.0,9.898e-05,2]
[328793168,1717789682313,150.0,9.898e-05,2]
[328793169,1717789682337,150.0,9.898e-05,2]
[328793170,1717789682362,150.0,9.898e-05,2]
[328793171,1717789682384,150.0,9.898e-05,2]
[328793172,1717789682409,150.0,9.898e-05,2]
[328793173,1717789682431,150.0,9.898e-05,2]
[328793174,1717789682455,150.0,9.898e-05,2]
[328793175,1717789682485,150.0,9.898e-05,2]
[328793176,1717789682508,150.0,9.898e-05,2]
[328793177,1717789682530,150.0,9.898e-05,2]
[328793178,1717789682552,150.0,9.898e-05,2]
[328793179,1717789682574,150.0,9.898e-05,2]
[328793180,1717789682595,150.0,9.898e-05,2]
[328793181,1717789682618,150.0,9.898e-05,2]
[328793182,1717789682641,41.50687761,9.898e-05,2]
[328793183,1717789683778,150.0,9.898e-05,2]
[328793184,1717789683799,5.28680746,9.898e-05,2]
[328793185,1717789687967,150.0,9.897e-05,2]
[328793186,1717789687989,150.0,9.897e-05,2]
[328793187,1717789688010,150.0,9.897e-05,2]
[328793188,1717789688032,150.0,9.897e-05,2]
[328793189,1717789688054,150.0,9.897e-05,2]
[328793190,1717789688076,150.0,9.897e-05,2]
[328793191,1717789688098,150.0,9.897e-05,2]
[328793192,1717789688119,150.0,9.897e-05,2]
[328793193,1717789688142,150.0,9.897e-05,2]
[328793194,1717789688164,7067.60031855,9.897e-05,2]
[328793195,1717789693143,150.0,9.898e-05,2]
[328793196,1717789693168,148.8786754,9.898e-05,2]
[328793197,1717789695439,1.1213246,9.898e-05,2]
[328793198,1717789695465,150.0,9.898e-05,2]
[328793199,1717789695489,150.0,9.898e-05,2]
[328793200,1717789695512,150.0,9.898e-05,2]
[328793201,1717789695535,150.0,9.898e-05,2]
[328793202,1717789695557,148.8786754,9.898e-05,2]
[328793203,1717789695595,1.1213246,9.898e-05,2]
[328793204,1717789695618,150.0,9.898e-05,2]
[328793205,1717789695640,150.0,9.898e-05,2]
[328793206,1717789695661,150.0,9.898e-05,2]
[328793207,1717789695683,150.0,9.898e-05,2]
[328793208,1717789695705,150.0,9.898e-05,2]
[328793209,1717789695726,150.0,9.898e-05,2]
[328793210,1717789695749,150.0,9.898e-05,2]
[328793211,1717789695772,24.86457362,9.898e-05,2]
[328793212,1717789695826,125.13542638,9.898e-05,2]
[328793213,1717789695849,150.0,9.898e-05,2]
[328793214,1717789695872,150.0,9.898e-05,2]
[328793215,1717789695898,272.66046024,9.898e-05,2]
[328793216,1717789695924,91.40872299,9.898e-05,2]
[328793217,1717789699846,957.66762831,9.403e-05,2]
[328793218,1717789699913,73970.73016198,9.898e-05,2]
[328793219,1717789702994,342.47512982,9.898e-05,2]
[328793220,1717789715391,955.3248852,9.403e-05,2]
[328793221,1717789719788,300.0,9.898e-05,2]
[328793222,1717789720401,1800.0,9.898e-05,2]
[328793226,1717789803517,150.0,9.898e-05,2]
[328793227,1717789803750,150.0,9.898e-05,2]
[328793228,1717789804016,150.0,9.898e-05,2]
[328793229,1717789804367,150.0,9.898e-05,2]
[328793230,1717789804590,219.84992135,9.898e-05,2]
[328793231,1717789808418,152.59054515,0.00013999,7]
[328793232,1717789833653,-1414.673433,0.00010383,2]
[328793233,1717789833663,-1052.85767216,0.00010436,2]
[328793234,1717789833673,-719.10246269,0.00010436,2]
[328793235,1717789833682,-195.68427479,0.00010437,2]
[328793238,1717789833692,-1700.88921429,0.00010437,2]
[328793241,1717789833703,-306.10796153,0.00010437,2]
[328793243,1717789833713,-2875.03441147,0.00010437,2]
[328793244,1717789833724,-155.0,0.00010437,2]
[328793245,1717789833735,-307.31586984,0.00010437,2]
[328793246,1717789833744,-241.49077668,0.00010438,2]
[328793247,1717789833756,-625.52085008,0.00010438,2]
[328793248,1717789833766,-263.71348611,0.00010438,2]
[328793249,1717789833775,-201.57961596,0.00010438,2]
[328793250,1717789833785,-1218.61187116,0.00010439,2]
[328793251,1717789833795,-10534.28950588,0.00010439,2]
[328793252,1717789833804,-170.35382184,0.00010499,2]
[328793253,1717789833814,-436.3905071,0.00010985,2]
[328793254,1717789833823,-792.11656562,0.00010985,2]
[328793255,1717789833834,-4289.88630303,0.00010986,2]
[328793256,1717789833844,-1794.9987264,0.00010986,2]
[328793257,1717789833853,-150.0,0.00010991,2]
[328793258,1717789833863,-6479.04141054,0.00010993,2]
[328793259,1717789833872,-941.67693938,0.00010994,2]
[328793260,1717789833882,-656.5414152,0.00010995,2]
[328793261,1717789833891,-200.0,0.00010995,2]
[328793262,1717789833901,-889.03326423,0.00010998,2]
[328793263,1717789833910,-166.2286623,0.00010999,2]
[328793264,1717789833920,-200.0,0.00011105,2]
[328793265,1717789833932,-210.0,0.0001209,2]
[328793266,1717789833945,-1000.0,0.00012183,2]
[328793267,1717789833955,-2840.84,0.00012955,2]
[328793268,1717789833964,-186.17,0.0001323,2]
[328793269,1717789833974,-536.09184502,0.00013294,2]
[328793270,1717789833984,-282.82092405,0.00013294,2]
[328793271,1717789833994,-291.25612605,0.00013294,2]
[328793272,1717789834005,-1857.56815729,0.00013294,2]
[328793273,1717789834018,-1040.19756488,0.00013295,2]
[328793274,1717789834028,-27275.9784875,0.00013296,2]
[328793275,1717789834041,-3627.98174025,0.00013296,2]
[328793276,1717789834053,-597.65331933,0.00013296,2]
[328793277,1717789834065,-636.51728058,0.00013296,2]
[328793278,1717789834076,-9639.44449427,0.00013296,2]
[328793279,1717789834088,-427.46101094,0.00013296,2]
[328793280,1717789834099,-1057.3,0.00013296,2]
[328793281,1717789834112,-6952.1452,0.00013296,2]
[328793282,1717789834123,-11272.42539774,0.00013296,2]
[328793283,1717789834134,-1039.56185241,0.00013296,2]
[328793284,1717789834146,-427.5,0.00013296,2]
[328793285,1717789834158,-678.22022149,0.00013296,2]
[328793286,1717789834167,-457.0936475,0.00013699,2]
[328793369,1717789840417,-728.5963525,0.00013699,2]
[328793372,1717789840427,-2751.0,0.00013699,2]
[328793376,1717789840437,-1000.0,0.00013706,2]
[328793380,1717789840448,-1308.81107975,0.0001372,2]
[328793383,1717789840458,-155.0,0.0001386,2]
[328793386,1717789840469,-150.15136608,0.000139,2]
[328793388,1717789840479,-322.35578445,0.000139,2]
[328793390,1717789840489,-168.04253375,0.000139,2]
[328793393,1717789840500,-211.84353316,0.000139,2]
[328793396,1717789840511,-254.20254976,0.000139,2]
[328793398,1717789840520,-150.0,0.00013973,2]
[328793401,1717789840530,-151.2,0.0001399,2]
[328793403,1717789840540,-151.2,0.0001399,2]
[328793406,1717789840550,-151.2,0.0001399,2]
[328793408,1717789840559,-151.2,0.0001399,2]
[328793411,1717789840569,-151.2,0.0001399,2]
[328793413,1717789840578,-151.2,0.0001399,2]
[328793415,1717789840587,-151.2,0.0001399,2]
[328793440,1717789840808,-151.2,0.0001399,2]
[328793442,1717789840823,-151.2,0.0001399,2]
[328793445,1717789840832,-254.55814076,0.00013998,2]
[328793447,1717789840842,-244.32990357,0.00013998,2]